Workbook

Sheet MASTER
B2: number of months | F2: 6 | H2: 12 | J2: 12 | L2: 12 | N2: 12 | P2: 12
B3: year | F3: 2023 Jan - June | H3: 2022 Jan - Dec | J3: 2021 Jan - Dec | L3: 2020 Jan - Dec | N3: 2019 Jan - Dec | P3: 2018 | R3: 2017 | T3: 2016 | V3: 2015 | X3: 2014 | Z3: 2013 | AB3: 2012
A4: Gross Revenue | B4: total of membership, events, non dues | E4: Gross Revenue | F4: =F5+F6+F7 -> 117215.83 | H4: =H5+H6+H7 -> 215274.77 | J4: 214649 | L4: =L5+L6+L7 -> 239752.98 | N4: =N5+N6+N7 -> 330058.32 | P4: =P5+P6+P7 -> 284000.5 | T4: ='2018'!G3 -> 0 | V4: ='2018'!I3 -> 0 | X4: ='2018'!K3 -> 0 | Z4: ='2018'!M3 -> 0 | AB4: ='2018'!O3 -> 0
A5: Membership | B5: membership only | C5: percentage of total | E5: Membership | F5: 45752.5 | G5: =F5/F4 -> 0.390326972 | H5: 98856.25 | I5: =H5/H4 -> 0.4592096417 | J5: 82967 | K5: =J5/J4 -> 0.3865240462 | L5: 114890.45 | M5: =L5/L4 -> 0.4792034285 | N5: 140462.92 | O5: =N5/N4 -> 0.4255700023 | P5: 107729.89 | Q5: =P5/P4 -> 0.3793299308 | S5: =R5/R4 ->  | U5: =T5/T4 ->  | W5: =V5/V4 ->  | Y5: =X5/X4 ->  | AA5: =Z5/Z4 ->  | AC5: =AB5/AB4 -> 
A6: Events | B6: events less expense | C6: percentage of total | E6: Events | F6: 29084.57 | G6: =F6/F4 -> 0.2481283458 | H6: 41654 | I6: =H6/H4 -> 0.1934922518 | J6: 58590 | K6: =J6/J4 -> 0.2729572465 | L6: 39785 | M6: =L6/L4 -> 0.1659416288 | N6: 91232.5 | O6: =N6/N4 -> 0.2764132714 | P6: 86840 | Q6: =P6/P4 -> 0.3057741096 | R6: ='2018'!E5 -> 0 | S6: =R6/R4 ->  | U6: =T6/T4 ->  | W6: =V6/V4 ->  | Y6: =X6/X4 ->  | AA6: =Z6/Z4 ->  | AC6: =AB6/AB4 -> 
A7: Non Dues | B7: non dues less expense | C7: percentage of total | E7: Non Dues | F7: 42378.76 | G7: =F7/F4 -> 0.3615446821 | H7: 74764.52 | I7: =H7/H4 -> 0.3472981065 | J7: 73092 | K7: =J7/J4 -> 0.3405187073 | L7: 85077.53 | M7: =L7/L4 -> 0.3548549428 | N7: 98362.9 | O7: =N7/N4 -> 0.2980167263 | P7: 89430.61 | Q7: =P7/P4 -> 0.3148959597 | R7: ='2018'!E6 -> 0 | S7: =R7/R4 ->  | U7: =T7/T4 ->  | W7: =V7/V4 ->  | Y7: =X7/X4 ->  | AA7: =Z7/Z4 ->  | AC7: =AB7/AB4 -> 
A10: Total Expenses | B10: line item expenses plus all events & non dues expense | E10: Total Expenses | F10: 117488.33 | H10: 216048.79 | J10: 215690.85 | L10: 249418.61 | N10: 336057.11 | P10: 324556.19 | R10: ='2018'!E10 -> 0 | T10: ='2018'!G10 -> 0 | V10: ='2018'!I10 -> 0 | X10: ='2018'!K10 -> 0 | Z10: ='2018'!M10 -> 0 | AB10: ='2018'!O10 -> 0
A11: Wages Expense | B11: total wages | C11: percentage of total expense | E11: Wages Expense | F11: 54024.96 | G11: =F11/F10 -> 0.4598325638 | H11: 97880.45 | I11: =H11/H10 -> 0.4530478972 | J11: ='do not use3'!C11 -> 49592 | K11: =J11/J10 -> 0.229921668 | L11: 101224.87 | M11: =L11/L10 -> 0.4058432929 | N11: 123527.79 | O11: =N11/N10 -> 0.3675797545 | P11: 129102.33 | Q11: =P11/P10 -> 0.3977811361 | R11: ='2018'!E11 -> 0 | S11: =R11/R10 ->  | U11: =T11/T10 ->  | W11: =V11/V10 ->  | Y11: =X11/X10 ->  | AA11: =Z11/Z10 ->  | AC11: =AB11/AB10 -> 
A12: Labor Cost | B12: wages divided into gross revenue | E12: Labor Cost | F12: =F11/F4 -> 0.4609015694 | H12: =H11/H4 -> 0.45467683 | J12: =J11/J4 -> 0.2310376475 | L12: =L11/L4 -> 0.422204846 | N12: =N11/N4 -> 0.3742604943 | P12: =P11/P4 -> 0.4545848687 | R12: =R11/R4 ->  | T12: =T11/T4 ->  | V12: =V11/V4 ->  | X12: =X11/X4 ->  | Z12: =Z11/Z4 ->  | AB12: =AB11/AB4 -> 
A13: Events Expense | B13: 4100 COA only | C13: percentage of total expense | E13: Events Expense | F13: 18458.62 | G13: =F13/F10 -> 0.1571102424 | H13: 35987.33 | I13: =H13/H10 -> 0.1665703844 | J13: 37170.64 | K13: =J13/J10 -> 0.1723329478 | L13: 3740.84 | M13: =L13/L10 -> 0.01499823931 | N13: 28850.52 | O13: =N13/N10 -> 0.0858500509 | P13: 31816.46 | Q13: =P13/P12 -> 69990.14308 | R13: ='2018'!E13 -> 0 | S13: =R13/R12 ->  | U13: =T13/T12 ->  | W13: =V13/V12 ->  | Y13: =X13/X12 ->  | AA13: =Z13/Z12 ->  | AC13: =AB13/AB12 -> 
A14: Events Cost | B14: event expense divided into gross revenue | E14: Events Cost | F14: =F13/F6 -> 0.6346533574 | H14: =H13/H6 -> 0.8639585634 | J14: =J13/J6 -> 0.6344195255 | L14: =L13/L6 -> 0.09402639186 | N14: =N13/N6 -> 0.3162307292 | P14: =P13/P6 -> 0.3663802395 | R14: =R13/R6 ->  | T14: =T13/T6 ->  | V14: =V13/V6 ->  | X14: =X13/X6 ->  | Z14: =Z13/Z6 ->  | AB14: =AB13/AB6 -> 
A16: Net Revenue | B16: gross revenue minus total expenses | E16: Net Revenue | F16: =F4-F10 -> -272.5 | H16: =H4-H10 -> -774.02 | J16: =J4-J10 -> -1041.85 | L16: =L4-L10 -> -9665.63 | N16: =N4-N10 -> -5998.79 | P16: =P4-P10 -> -40555.69 | R16: =R4-R10 -> 0 | T16: =T4-T10 -> 0 | V16: =V4-V10 -> 0 | X16: =X4-X10 -> 0 | Z16: =Z4-Z10 -> 0 | AB16: =AB4-AB10 -> 0
B18: MONTHLY AVERAGES | F18: MONTHLY AVERAGES
A21: Gross Revenue | B21: total gross divided by number of months | E21: Gross Revenue | F21: =F4/F2 -> 19535.97167 | H21: =H4/H2 -> 17939.56417 | J21: =J4/J2 -> 17887.41667 | L21: =L4/L2 -> 19979.415 | N21: =N4/N2 -> 27504.86 | P21: =P4/P2 -> 23666.70833 | R21: =R4/R2 ->  | T21: =T4/T2 ->  | V21: =V4/V2 ->  | X21: =X4/X2 ->  | Z21: =Z4/Z2 ->  | AB21: =AB4/AB2 -> 
A22: Membership | B22: total membership divided by number of months | E22: Membership | F22: =F5/F2 -> 7625.416667 | H22: =H5/H2 -> 8238.020833 | J22: =J5/J2 -> 6913.916667 | L22: =L5/L2 -> 9574.204167 | N22: =N5/N2 -> 11705.24333 | P22: =P5/P2 -> 8977.490833 | R22: =R5/R2 ->  | T22: =T5/T2 ->  | V22: =V5/V2 ->  | X22: =X5/X2 ->  | Z22: =Z5/Z2 ->  | AB22: =AB5/AB2 -> 
A23: Events | B23: total events divided by number of months | E23: Events | F23: =F6/F2 -> 4847.428333 | H23: =H6/H2 -> 3471.166667 | J23: =J6/J2 -> 4882.5 | L23: =L6/L2 -> 3315.416667 | N23: =N6/N2 -> 7602.708333 | P23: =P6/P2 -> 7236.666667 | R23: =R6/R2 ->  | T23: =T6/T2 ->  | V23: =V6/V2 ->  | X23: =X6/X2 ->  | Z23: =Z6/Z2 ->  | AB23: =AB6/AB2 -> 
A24: Non Dues | B24: total non dues divided by number of months | E24: Non Dues | F24: =F7/F2 -> 7063.126667 | H24: =H7/H2 -> 6230.376667 | J24: =J7/J2 -> 6091 | L24: =L7/L2 -> 7089.794167 | N24: =N7/N2 -> 8196.908333 | P24: =P7/P2 -> 7452.550833 | R24: =R7/R2 ->  | T24: =T7/T2 ->  | V24: =V7/V2 ->  | X24: =X7/X2 ->  | Z24: =Z7/Z2 ->  | AB24: =AB7/AB2 -> 
A26: Total Expenses | B26: total expenses divided by number of months | E26: Total Expenses | F26: =F10/F2 -> 19581.38833 | H26: =H10/H2 -> 18004.06583 | J26: =J10/J2 -> 17974.2375 | L26: =L10/L2 -> 20784.88417 | N26: =N10/N2 -> 28004.75917 | P26: =P10/P2 -> 27046.34917 | R26: =R10/R2 ->  | T26: =T10/T2 ->  | V26: =V10/V2 ->  | X26: =X10/X2 ->  | Z26: =Z10/Z2 ->  | AB26: =AB10/AB2 -> 
A27: Wages | B27: total wages expense divided by number of months | E27: Wages | F27: =F11/F2 -> 9004.16 | H27: =H11/H2 -> 8156.704167 | J27: =J11/J2 -> 4132.666667 | L27: =L11/L2 -> 8435.405833 | N27: =N11/N2 -> 10293.9825 | P27: =P11/P2 -> 10758.5275 | R27: =R11/R2 ->  | T27: =T11/T2 ->  | V27: =V11/V2 ->  | X27: =X11/X2 ->  | Z27: =Z11/Z2 ->  | AB27: =AB11/AB2 -> 
A28: Events Expense | B28: total event expense divided by number of months | E28: Events Expense | F28: =F13/F2 -> 3076.436667 | H28: =H13/H2 -> 2998.944167 | J28: =J13/J2 -> 3097.553333 | L28: =L13/L2 -> 311.7366667 | N28: =N13/N2 -> 2404.21 | P28: =P13/P2 -> 2651.371667

Sheet do not use (hidden)
B1: 2023
C2: YEAR END | F2: JANUARY | H2: FEBRUARY | J2: MARCH | L2: APRIL | N2: MAY | P2: JUNE | R2: JULY | T2: AUGUST | V2: SEPTEMBER | X2: OCTOBER | Z2: NOVEMBER | AB2: DECEMBER
B3: Gross Revenue | C3: =F3+H3+J3+L3+N3+P3+R3+T3+V3+X3+Z3+AB3 -> 84000 | F3: 13549 | H3: 20985 | J3: 26469 | L3: 22997
B4: Membership | C4: =F4+H4+J4+L4+N4+P4+R4+T4+V4+X4+Z4+AB4 -> 32850 | D4: =C4/C3 -> 0.3910714286 | F4: 4610 | G4: =F4/F3 -> 0.3402465127 | H4: 10510 | I4: =H4/H3 -> 0.500833929 | J4: 7290 | K4: =J4/J3 -> 0.275416525 | L4: 10440 | M4: =L4/L3 -> 0.4539722573 | O4: =N4/N3 ->  | Q4: =P4/P3 ->  | S4: =R4/R3 ->  | U4: =T4/T3 ->  | W4: =V4/V3 ->  | Y4: =X4/X3 ->  | AA4: =Z4/Z3 ->  | AC4: =AB4/AB3 -> 
B5: Events | C5: =F5+H5+J5+L5+N5+P5+R5+T5+V5+X5+Z5+AB5 ->  | D5: =C5/C3 ->  | G5: =F5/F3 ->  | H5: 1584 | I5: =H5/H3 -> 0.07548248749 | J5: 4028 | K5: =J5/J3 -> 0.1521780196 | L5: 6625 | M5: =L5/L3 -> 0.2880810541 | O5: =N5/N3 ->  | Q5: =P5/P3 ->  | S5: =R5/R3 ->  | U5: =T5/T3 ->  | W5: =V5/V3 ->  | Y5: =X5/X3 ->  | AA5: =Z5/Z3 ->  | AC5: =AB5/AB3 -> 
B6: Non Dues | C6: =F6+H6+J6+L6+N6+P6+R6+T6+V6+X6+Z6+AB6 -> 25004 | D6: =C6/C3 -> 0.2976666667 | F6: 7561 | G6: =F6/F3 -> 0.5580485645 | H6: 4536 | I6: =H6/H3 -> 0.216154396 | J6: 8226 | K6: =J6/J3 -> 0.3107786467 | L6: 4681 | M6: =L6/L3 -> 0.2035482889 | O6: =N6/N3 ->  | Q6: =P6/P3 ->  | S6: =R6/R3 ->  | U6: =T6/T3 ->  | W6: =V6/V3 ->  | Y6: =X6/X3 ->  | AA6: =Z6/Z3 ->  | AC6: =AB6/AB3 -> 
B7: Membership Activity | C7: =F7+H7+J7+L7+N7+P7+R7+T7+V7+X7+Z7+AB7 -> 12556 | D7: =C7/C3 -> 0.1494761905 | F7: 25 | G7: =F7/F3 -> 0.001845154624 | H7: 4355 | I7: =H7/H3 -> 0.2075291875 | J7: 6925 | K7: =J7/J3 -> 0.2616268087 | L7: 1251 | M7: =L7/L3 -> 0.05439839979 | O7: =N7/N3 ->  | Q7: =P7/P3 ->  | S7: =R7/R3 ->  | U7: =T7/T3 ->  | W7: =V7/V3 ->  | Y7: =X7/X3 ->  | AA7: =Z7/Z3 ->  | AC7: =AB7/AB3 -> 
B10: Expenses | C10: =F10+H10+J10+L10+N10+P10+R10+T10+V10+X10+Z10+AB10 -> 85120 | F10: 15744 | H10: 17891 | J10: 16811 | L10: 34674
B11: Wages | C11: =F11+H11+J11+L11+N11+P11+R11+T11+V11+X11+Z11+AB11 -> 36112 | D11: =C11/C10 -> 0.4242481203 | F11: 9182 | G11: =F11/F10 -> 0.5832063008 | H11: 8717 | I11: =H11/H10 -> 0.4872282153 | J11: 8732 | K11: =J11/J10 -> 0.5194218072 | L11: 9481 | M11: =L11/L10 -> 0.2734325431 | O11: =N11/N10 ->  | Q11: =P11/P10 ->  | S11: =R11/R10 ->  | U11: =T11/T10 ->  | W11: =V11/V10 ->  | Y11: =X11/X10 ->  | AA11: =Z11/Z10 ->  | AC11: =AB11/AB10 -> 
D12: =C11/C3 -> 0.4299047619 | G12: =F11/F3 -> 0.6776883903 | I12: =H11/H3 -> 0.4153919466 | K12: =J11/J3 -> 0.3298953493 | M12: =L11/L3 -> 0.4122711658 | O12: =N11/N3 ->  | Q12: =P11/P3 ->  | S12: =R11/R3 ->  | U12: =T11/T3 ->  | W12: =V11/V3 ->  | Y12: =X11/X3 ->  | AA12: =Z11/Z3 ->  | AC12: =AB11/AB3 -> 
C14: =C3-C10 -> -1120 | F14: =F3-F10 -> -2195 | H14: =H3-H10 -> 3094 | J14: =J3-J10 -> 9658 | L14: =L3-L10 -> -11677 | N14: =N3-N10 -> 0 | P14: =P3-P10 -> 0 | R14: =R3-R10 -> 0 | T14: =T3-T10 -> 0 | V14: =V3-V10 -> 0 | X14: =X3-X10 -> 0 | Z14: =Z3-Z10 -> 0 | AB14: =AB3-AB10 -> 0

Sheet do not use2 (hidden)
B1: 2022
C2: YEAR END | F2: JANUARY | H2: FEBRUARY | J2: MARCH | L2: APRIL | N2: MAY | P2: JUNE | R2: JULY | T2: AUGUST | V2: SEPTEMBER | X2: OCTOBER | Z2: NOVEMBER | AB2: DECEMBER
B3: Gross Revenue | C3: =F3+'do not use'!H3+J3+L3+N3+P3+R3+T3+V3+X3+Z3+AB3 -> 174115 | F3: 14037 | H3: 11561 | J3: 17512 | L3: 21895 | N3: 9342 | P3: 13687 | R3: 22691 | T3: 13135 | V3: 5003 | X3: 20778 | Z3: 1775 | AB3: 13275
B4: Membership | C4: =F4+'do not use'!H4+J4+L4+N4+P4+R4+T4+V4+X4+Z4+AB4 -> 99340 | D4: =C4/C3 -> 0.5705424576 | F4: 7001 | G4: =F4/F3 -> 0.4987532949 | H4: 7453 | I4: ='do not use'!H4/'do not use'!H3 -> 0.500833929 | J4: 6040 | K4: =J4/J3 -> 0.3449063499 | L4: 5620 | M4: =L4/L3 -> 0.2566796072 | N4: 7512 | O4: =N4/N3 -> 0.8041104689 | P4: 3805 | Q4: =P4/P3 -> 0.2780010229 | R4: 11105 | S4: =R4/R3 -> 0.4894010841 | T4: 7490 | U4: =T4/T3 -> 0.570232204 | V4: 5110 | W4: =V4/V3 -> 1.021387168 | X4: 9942 | Y4: =X4/X3 -> 0.4784868611 | Z4: 16335 | AA4: =Z4/Z3 -> 9.202816901 | AB4: 8870 | AC4: =AB4/AB3 -> 0.668173258
B5: Events | C5: =F5+'do not use'!H5+J5+L5+N5+P5+R5+T5+V5+X5+Z5+AB5 -> 7534 | D5: =C5/C3 -> 0.04327025242 | F5: 485 | G5: =F5/F3 -> 0.03455154235 | H5: -286 | I5: ='do not use'!H5/'do not use'!H3 -> 0.07548248749 | J5: 150 | K5: =J5/J3 -> 0.008565555048 | L5: 6489 | M5: =L5/L3 -> 0.296369034 | N5: 1588 | O5: =N5/N3 -> 0.1699850139 | P5: 2208 | Q5: =P5/P3 -> 0.1613209615 | R5: 1182 | S5: =R5/R3 -> 0.05209113746 | T5: 4194 | U5: =T5/T3 -> 0.3192995813 | V5: -670 | W5: =V5/V3 -> -0.1339196482 | X5: 2071 | Y5: =X5/X3 -> 0.09967273077 | Z5: -10962 | AA5: =Z5/Z3 -> -6.175774648 | AB5: -785 | AC5: =AB5/AB3 -> -0.05913370998
B6: Non Dues | C6: =F6+'do not use'!H6+J6+L6+N6+P6+R6+T6+V6+X6+Z6+AB6 -> 54637 | D6: =C6/C3 -> 0.3137983517 | F6: 6551 | G6: =F6/F3 -> 0.4666951628 | H6: 4796 | I6: ='do not use'!H6/'do not use'!H3 -> 0.216154396 | J6: 8976 | K6: =J6/J3 -> 0.5125628141 | L6: 876 | M6: =L6/L3 -> 0.04000913451 | N6: 2076 | O6: =N6/N3 -> 0.2222222222 | P6: 7626 | Q6: =P6/P3 -> 0.5571710382 | R6: 10376 | S6: =R6/R3 -> 0.457273809 | T6: 1176 | U6: =T6/T3 -> 0.08953178531 | V6: 876 | W6: =V6/V3 -> 0.175094943 | X6: 5626 | Y6: =X6/X3 -> 0.2707671576 | Z6: 776 | AA6: =Z6/Z3 -> 0.4371830986 | AB6: 5166 | AC6: =AB6/AB3 -> 0.3891525424
B7: Membership Activity | C7: =F7+'do not use'!H7+J7+L7+N7+P7+R7+T7+V7+X7+Z7+AB7 -> 12012 | D7: =C7/C3 -> 0.06898888666 | F7: 0 | G7: =F7/F3 -> 0 | H7: -385 | I7: ='do not use'!H7/'do not use'!H3 -> 0.2075291875 | J7: 2345 | K7: =J7/J3 -> 0.1339081772 | L7: 8910 | M7: =L7/L3 -> 0.4069422243 | N7: -1834 | O7: =N7/N3 -> -0.196317705 | P7: 47 | Q7: =P7/P3 -> 0.003433915394 | R7: 27 | S7: =R7/R3 -> 0.001189899079 | T7: 275 | U7: =T7/T3 -> 0.02093642939 | V7: -902 | W7: =V7/V3 -> -0.1802918249 | X7: 3137 | Y7: =X7/X3 -> 0.1509769949 | Z7: -4373 | AA7: =Z7/Z3 -> -2.463661972 | AB7: 25 | AC7: =AB7/AB3 -> 0.001883239171
B10: Expenses | C10: =F10+'do not use'!H10+J10+L10+N10+P10+R10+T10+V10+X10+Z10+AB10 -> 171262 | F10: 10819 | H10: 12460 | J10: 11908 | L10: 13430 | N10: 15494 | P10: 13169 | R10: 13114 | T10: 13470 | V10: 12848 | X10: 13240 | Z10: 20100 | AB10: 15779
B11: Wages | C11: =F11+'do not use'!H11+J11+L11+N11+P11+R11+T11+V11+X11+Z11+AB11 -> 98789 | D11: =C11/C10 -> 0.5768296528 | F11: 4583 | G11: =F11/F10 -> 0.423606618 | H11: 7803 | I11: ='do not use'!H11/'do not use'!H10 -> 0.4872282153 | J11: 7102 | K11: =J11/J10 -> 0.5964057776 | L11: 7971 | M11: =L11/L10 -> 0.5935219657 | N11: 8054 | O11: =N11/N10 -> 0.5198141216 | P11: 8106 | Q11: =P11/P10 -> 0.6155364872 | R11: 8136 | S11: =R11/R10 -> 0.6204056733 | T11: 8166 | U11: =T11/T10 -> 0.6062360802 | V11: 7791 | W11: =V11/V10 -> 0.6063978829 | X11: 7446 | Y11: =X11/X10 -> 0.5623867069 | Z11: 13266 | AA11: =Z11/Z10 -> 0.66 | AB11: 9451 | AC11: =AB11/AB10 -> 0.5989606439
D12: =C11/C3 -> 0.5673778824 | G12: =F11/F3 -> 0.3264942652 | I12: ='do not use'!H11/'do not use'!H3 -> 0.4153919466 | K12: =J11/J3 -> 0.4055504797 | M12: =L11/L3 -> 0.3640557205 | O12: =N11/N3 -> 0.862128024 | Q12: =P11/P3 -> 0.5922408124 | S12: =R11/R3 -> 0.3585562558 | U12: =T11/T3 -> 0.6216977541 | W12: =V11/V3 -> 1.557265641 | Y12: =X11/X3 -> 0.3583598036 | AA12: =Z11/Z3 -> 7.473802817 | AC12: =AB11/AB3 -> 0.7119397363
C14: =C3-C10 -> 2853 | F14: =F3-F10 -> 3218 | H14: =H3-H10 -> -899 | J14: =J3-J10 -> 5604 | L14: =L3-L10 -> 8465 | N14: =N3-N10 -> -6152 | P14: =P3-P10 -> 518 | R14: =R3-R10 -> 9577 | T14: =T3-T10 -> -335 | V14: =V3-V10 -> -7845 | X14: =X3-X10 -> 7538 | Z14: =Z3-Z10 -> -18325 | AB14: =AB3-AB10 -> -2504

Sheet do not use3 (hidden)
B1: 2021
C2: YEAR END | F2: JANUARY | H2: FEBRUARY | J2: MARCH | L2: APRIL | N2: MAY | P2: JUNE | R2: JULY | T2: AUGUST | V2: SEPTEMBER | X2: OCTOBER | Z2: NOVEMBER | AB2: DECEMBER
B3: Gross Revenue | C3: =F3+H3+J3+L3+N3+P3+R3+T3+V3+X3+Z3+AB3 -> 152911 | F3: 8343 | H3: 14898 | J3: 30009 | L3: 22858 | N3: 15808 | P3: 11237 | R3: -1283 | T3: 10387 | V3: 5096 | X3: 12864 | Z3: 10816 | AB3: 11878
B4: Membership | C4: =F4+H4+J4+L4+N4+P4+R4+T4+V4+X4+Z4+AB4 -> 82714 | D4: =C4/C3 -> 0.5409290372 | F4: 7365 | G4: =F4/F3 -> 0.8827759799 | H4: 6276 | I4: =H4/H3 -> 0.4212645993 | J4: 6956 | K4: =J4/J3 -> 0.2317971275 | L4: 6405 | M4: =L4/L3 -> 0.2802082422 | N4: 6107 | O4: =N4/N3 -> 0.3863233806 | P4: 4245 | Q4: =P4/P3 -> 0.3777698674 | R4: 4655 | S4: =R4/R3 -> -3.628215121 | T4: 5945 | U4: =T4/T3 -> 0.572350053 | V4: 4495 | W4: =V4/V3 -> 0.8820643642 | X4: 5580 | Y4: =X4/X3 -> 0.4337686567 | Z4: 13935 | AA4: =Z4/Z3 -> 1.288369083 | AB4: 10750 | AC4: =AB4/AB3 -> 0.9050345176
B5: Events | C5: =F5+H5+J5+L5+N5+P5+R5+T5+V5+X5+Z5+AB5 -> 21418 | D5: =C5/C3 -> 0.1400684058 | F5: 701 | G5: =F5/F3 -> 0.08402253386 | H5: 5120 | I5: =H5/H3 -> 0.3436702913 | J5: 3915 | K5: =J5/J3 -> 0.1304608617 | L5: 2135 | M5: =L5/L3 -> 0.0934027474 | N5: -2100 | O5: =N5/N3 -> -0.1328441296 | P5: -100 | Q5: =P5/P3 -> -0.008899172377 | R5: -5542 | S5: =R5/R3 -> 4.319563523 | T5: 3231 | U5: =T5/T3 -> 0.3110619043 | V5: 11803 | W5: =V5/V3 -> 2.316130298 | X5: 5872 | Y5: =X5/X3 -> 0.4564676617 | Z5: -4075 | AA5: =Z5/Z3 -> -0.3767566568 | AB5: 458 | AC5: =AB5/AB3 -> 0.03855867991
B6: Non Dues | C6: =F6+H6+J6+L6+N6+P6+R6+T6+V6+X6+Z6+AB6 -> 34812 | D6: =C6/C3 -> 0.2276618425 | F6: 776 | G6: =F6/F3 -> 0.09301210596 | H6: 776 | I6: =H6/H3 -> 0.05208752853 | J6: 10276 | K6: =J6/J3 -> 0.3424306042 | L6: 5276 | M6: =L6/L3 -> 0.2308163444 | N6: 7776 | O6: =N6/N3 -> 0.491902834 | P6: 5276 | Q6: =P6/P3 -> 0.4695203346 | R6: 776 | S6: =R6/R3 -> -0.604832424 | T6: 776 | U6: =T6/T3 -> 0.07470877058 | V6: 776 | W6: =V6/V3 -> 0.1522762951 | X6: 776 | Y6: =X6/X3 -> 0.06032338308 | Z6: 776 | AA6: =Z6/Z3 -> 0.07174556213 | AB6: 776 | AC6: =AB6/AB3 -> 0.06533086378
B7: Membership Activity | C7: =F7+H7+J7+L7+N7+P7+R7+T7+V7+X7+Z7+AB7 -> 5559 | D7: =C7/C3 -> 0.03635448071 | F7: -500 | G7: =F7/F3 -> -0.05993048064 | H7: 350 | I7: =H7/H3 -> 0.02349308632 | J7: -5 | K7: =J7/J3 -> -0.0001666166817 | L7: 575 | M7: =L7/L3 -> 0.02515530668 | N7: 6645 | O7: =N7/N3 -> 0.4203567814 | P7: 1100 | Q7: =P7/P3 -> 0.09789089615 | R7: -1173 | S7: =R7/R3 -> 0.9142634451 | T7: 435 | U7: =T7/T3 -> 0.04187927217 | V7: -1078 | W7: =V7/V3 -> -0.2115384615 | X7: -214 | Y7: =X7/X3 -> -0.01663557214 | Z7: -220 | AA7: =Z7/Z3 -> -0.02034023669 | AB7: -356 | AC7: =AB7/AB3 -> -0.02997137565
B10: Expenses | C10: =F10+H10+J10+L10+N10+P10+R10+T10+V10+X10+Z10+AB10 -> 154042 | F10: 12039 | H10: 11605 | J10: 11376 | L10: 15408 | N10: 16222 | P10: 14618 | R10: 6439 | T10: 8533 | V10: 14655 | X10: 14948 | Z10: 14130 | AB10: 14069
B11: Wages | C11: =F11+H11+J11+L11+N11+P11+R11+T11+V11+X11+Z11+AB11 -> 49592 | D11: =C11/C10 -> 0.3219381727 | F11: 0 | G11: =F11/F10 -> 0 | H11: 0 | I11: =H11/H10 -> 0 | J11: 0 | K11: =J11/J10 -> 0 | L11: 3145 | M11: =L11/L10 -> 0.2041147456 | N11: 2500 | O11: =N11/N10 -> 0.1541117002 | P11: 2500 | Q11: =P11/P10 -> 0.1710220276 | R11: 2500 | S11: =R11/R10 -> 0.3882590464 | T11: 2283 | U11: =T11/T10 -> 0.2675495137 | V11: 9166 | W11: =V11/V10 -> 0.6254520641 | X11: 9166 | Y11: =X11/X10 -> 0.6131924003 | Z11: 9166 | AA11: =Z11/Z10 -> 0.6486907289 | AB11: 9166 | AC11: =AB11/AB10 -> 0.6515033051
D12: =C11/C3 -> 0.3243193753 | G12: =F11/F3 -> 0 | I12: =H11/H3 -> 0 | K12: =J11/J3 -> 0 | M12: =L11/L3 -> 0.1375885904 | O12: =N11/N3 -> 0.1581477733 | Q12: =P11/P3 -> 0.2224793094 | S12: =R11/R3 -> -1.948558067 | U12: =T11/T3 -> 0.2197939732 | W12: =V11/V3 -> 1.79866562 | Y12: =X11/X3 -> 0.7125310945 | AA12: =Z11/Z3 -> 0.8474482249 | AC12: =AB11/AB3 -> 0.7716787338
C14: =C3-C10 -> -1131 | F14: =F3-F10 -> -3696 | H14: =H3-H10 -> 3293 | J14: =J3-J10 -> 18633 | L14: =L3-L10 -> 7450 | N14: =N3-N10 -> -414 | P14: =P3-P10 -> -3381 | R14: =R3-R10 -> -7722 | T14: =T3-T10 -> 1854 | V14: =V3-V10 -> -9559 | X14: =X3-X10 -> -2084 | Z14: =Z3-Z10 -> -3314 | AB14: =AB3-AB10 -> -2191

Sheet do not use4 (hidden)
B1: 2020
C2: YEAR END | F2: JANUARY | H2: FEBRUARY | J2: MARCH | L2: APRIL | N2: MAY | P2: JUNE | R2: JULY | T2: AUGUST | V2: SEPTEMBER | X2: OCTOBER | Z2: NOVEMBER | AB2: DECEMBER
B3: Gross Revenue | C3: =F3+H3+J3+L3+N3+P3+R3+T3+V3+X3+Z3+AB3 -> 112853 | F3: 74044 | T3: 6365 | V3: 12027 | X3: -1071 | Z3: 12137 | AB3: 9351
B4: Membership | C4: =F4+H4+J4+L4+N4+P4+R4+T4+V4+X4+Z4+AB4 -> 70016 | D4: =C4/C3 -> 0.6204177115 | F4: 15518 | G4: =F4/F3 -> 0.2095780887 | I4: =H4/H3 ->  | K4: =J4/J3 ->  | M4: =L4/L3 ->  | O4: =N4/N3 ->  | Q4: =P4/P3 ->  | S4: =R4/R3 ->  | T4: 13443 | U4: =T4/T3 -> 2.112018853 | V4: 12963 | W4: =V4/V3 -> 1.077824894 | X4: 8232 | Y4: =X4/X3 -> -7.68627451 | Z4: 12285 | AA4: =Z4/Z3 -> 1.012194117 | AB4: 7575 | AC4: =AB4/AB3 -> 0.8100737889
B5: Events | C5: =F5+H5+J5+L5+N5+P5+R5+T5+V5+X5+Z5+AB5 -> 12570 | D5: =C5/C3 -> 0.1113838356 | F5: 29674 | G5: =F5/F3 -> 0.4007617093 | I5: =H5/H3 ->  | K5: =J5/J3 ->  | M5: =L5/L3 ->  | O5: =N5/N3 ->  | Q5: =P5/P3 ->  | S5: =R5/R3 ->  | T5: -10075 | U5: =T5/T3 -> -1.582875098 | V5: 2575 | W5: =V5/V3 -> 0.2141016047 | X5: -9836 | Y5: =X5/X3 -> 9.183940243 | Z5: -268 | AA5: =Z5/Z3 -> -0.02208123919 | AB5: 500 | AC5: =AB5/AB3 -> 0.05347021709
B6: Non Dues | C6: =F6+H6+J6+L6+N6+P6+R6+T6+V6+X6+Z6+AB6 -> 10196 | D6: =C6/C3 -> 0.09034762036 | F6: 6316 | G6: =F6/F3 -> 0.08530063206 | I6: =H6/H3 ->  | K6: =J6/J3 ->  | M6: =L6/L3 ->  | O6: =N6/N3 ->  | Q6: =P6/P3 ->  | S6: =R6/R3 ->  | T6: 776 | U6: =T6/T3 -> 0.1219167321 | V6: 776 | W6: =V6/V3 -> 0.06452149331 | X6: 776 | Y6: =X6/X3 -> -0.7245564893 | Z6: 776 | AA6: =Z6/Z3 -> 0.06393672242 | AB6: 776 | AC6: =AB6/AB3 -> 0.08298577692
B7: Membership Activity | C7: =F7+H7+J7+L7+N7+P7+R7+T7+V7+X7+Z7+AB7 -> 14741 | D7: =C7/C3 -> 0.1306212507 | F7: 13235 | G7: =F7/F3 -> 0.1787450705 | I7: =H7/H3 ->  | K7: =J7/J3 ->  | M7: =L7/L3 ->  | O7: =N7/N3 ->  | Q7: =P7/P3 ->  | S7: =R7/R3 ->  | T7: 1050 | U7: =T7/T3 -> 0.1649646504 | V7: 1255 | W7: =V7/V3 -> 0.1043485491 | X7: -644 | Y7: =X7/X3 -> 0.6013071895 | Z7: -655 | AA7: =Z7/Z3 -> -0.05396720771 | AB7: 500 | AC7: =AB7/AB3 -> 0.05347021709
B10: Expenses | C10: =F10+H10+J10+L10+N10+P10+R10+T10+V10+X10+Z10+AB10 -> 105467 | F10: 26052 | T10: 15916 | V10: 24930 | X10: 12605 | Z10: 12222 | AB10: 13742
B11: Wages | C11: =F11+H11+J11+L11+N11+P11+R11+T11+V11+X11+Z11+AB11 -> 39485 | D11: =C11/C10 -> 0.3743825083 | F11: 9670 | G11: =F11/F10 -> 0.3711807155 | I11: =H11/H10 ->  | K11: =J11/J10 ->  | M11: =L11/L10 ->  | O11: =N11/N10 ->  | Q11: =P11/P10 ->  | S11: =R11/R10 ->  | T11: 8153 | U11: =T11/T10 -> 0.5122518221 | V11: 13615 | W11: =V11/V10 -> 0.5461291617 | X11: 3366 | Y11: =X11/X10 -> 0.2670368901 | Z11: 3406 | AA11: =Z11/Z10 -> 0.2786777941 | AB11: 1275 | AC11: =AB11/AB10 -> 0.09278125455
D12: =C11/C3 -> 0.3498799323 | G12: =F11/F3 -> 0.1305980228 | I12: =H11/H3 ->  | K12: =J11/J3 ->  | M12: =L11/L3 ->  | O12: =N11/N3 ->  | Q12: =P11/P3 ->  | S12: =R11/R3 ->  | U12: =T11/T3 -> 1.280911233 | W12: =V11/V3 -> 1.132036252 | Y12: =X11/X3 -> -3.142857143 | AA12: =Z11/Z3 -> 0.2806294801 | AC12: =AB11/AB3 -> 0.1363490536
C14: =C3-C10 -> 7386 | F14: =F3-F10 -> 47992 | H14: =H3-H10 -> 0 | J14: =J3-J10 -> 0 | L14: =L3-L10 -> 0 | N14: =N3-N10 -> 0 | P14: =P3-P10 -> 0 | R14: =R3-R10 -> 0 | T14: =T3-T10 -> -9551 | V14: =V3-V10 -> -12903 | X14: =X3-X10 -> -13676 | Z14: =Z3-Z10 -> -85 | AB14: =AB3-AB10 -> -4391

Sheet 2019 (hidden)
B1: 2019
C2: YEAR END | F2: JANUARY | H2: FEBRUARY | J2: MARCH | L2: APRIL | N2: MAY | P2: JUNE | R2: JULY | T2: AUGUST | V2: SEPTEMBER | X2: OCTOBER | Z2: NOVEMBER | AB2: DECEMBER
B3: Gross Revenue | C3: =F3+H3+J3+L3+N3+P3+R3+T3+V3+X3+Z3+AB3 -> 255882 | F3: 46999 | H3: 54049 | J3: 45051 | L3: 17471 | N3: 13284 | P3: 6234 | R3: 7638 | T3: 9879 | V3: 10280 | X3: 21830 | Z3: 11721 | AB3: 11446
B4: Membership | C4: =F4+H4+J4+L4+N4+P4+R4+T4+V4+X4+Z4+AB4 -> 140459 | D4: =C4/C3 -> 0.548920987 | F4: 10015 | G4: =F4/F3 -> 0.2130896402 | H4: 9730 | I4: =H4/H3 -> 0.180021832 | J4: 21545 | K4: =J4/J3 -> 0.4782357772 | L4: 16592 | M4: =L4/L3 -> 0.9496880545 | N4: 8055 | O4: =N4/N3 -> 0.6063685637 | P4: 6815 | Q4: =P4/P3 -> 1.093198588 | R4: 5030 | S4: =R4/R3 -> 0.6585493585 | T4: 8202 | U4: =T4/T3 -> 0.8302459763 | V4: 10060 | W4: =V4/V3 -> 0.9785992218 | X4: 12709 | Y4: =X4/X3 -> 0.5821804856 | Z4: 20531 | AA4: =Z4/Z3 -> 1.751642351 | AB4: 11175 | AC4: =AB4/AB3 -> 0.9763236065
B5: Events | C5: =F5+H5+J5+L5+N5+P5+R5+T5+V5+X5+Z5+AB5 -> 61170 | D5: =C5/C3 -> 0.2390555021 | F5: 9435 | G5: =F5/F3 -> 0.2007489521 | H5: 28550 | I5: =H5/H3 -> 0.528224389 | J5: 12512 | K5: =J5/J3 -> 0.2777296841 | L5: 11627 | M5: =L5/L3 -> 0.6655028333 | N5: 2153 | O5: =N5/N3 -> 0.1620746763 | P5: -460 | Q5: =P5/P3 -> -0.07378889958 | R5: -1199 | S5: =R5/R3 -> -0.1569782666 | T5: 20 | U5: =T5/T3 -> 0.002024496407 | V5: -291 | W5: =V5/V3 -> -0.028307393 | X5: 9513 | Y5: =X5/X3 -> 0.4357764544 | Z5: -10706 | AA5: =Z5/Z3 -> -0.9134032932 | AB5: 16 | AC5: =AB5/AB3 -> 0.001397868251
B6: Non Dues | C6: =F6+H6+J6+L6+N6+P6+R6+T6+V6+X6+Z6+AB6 -> 12812 | D6: =C6/C3 -> 0.05006995412 | F6: 2276 | G6: =F6/F3 -> 0.04842656227 | H6: 3560 | I6: =H6/H3 -> 0.06586615849 | J6: 122 | K6: =J6/J3 -> 0.002708041997 | L6: 836 | M6: =L6/L3 -> 0.04785072406 | N6: 46 | O6: =N6/N3 -> 0.003462812406 | P6: 1427 | Q6: =P6/P3 -> 0.2289059994 | R6: 577 | S6: =R6/R3 -> 0.07554333595 | T6: 823 | U6: =T6/T3 -> 0.08330802713 | V6: 776 | W6: =V6/V3 -> 0.07548638132 | X6: 798 | Y6: =X6/X3 -> 0.03655519927 | Z6: 776 | AA6: =Z6/Z3 -> 0.06620595512 | AB6: 795 | AC6: =AB6/AB3 -> 0.06945657872
B7: Membership Activity | C7: =F7+H7+J7+L7+N7+P7+R7+T7+V7+X7+Z7+AB7 -> 18513 | D7: =C7/C3 -> 0.07234975497 | F7: 7586 | G7: =F7/F3 -> 0.1614076895 | H7: 6609 | I7: =H7/H3 -> 0.122277933 | J7: 2671 | K7: =J7/J3 -> 0.05928836208 | L7: 313 | M7: =L7/L3 -> 0.01791540267 | N7: 1229 | O7: =N7/N3 -> 0.09251731406 | P7: -1320 | Q7: =P7/P3 -> -0.2117420597 | R7: 3030 | S7: =R7/R3 -> 0.396700707 | T7: 483 | U7: =T7/T3 -> 0.04889158822 | V7: -264 | W7: =V7/V3 -> -0.02568093385 | X7: -1190 | Y7: =X7/X3 -> -0.05451213926 | Z7: 575 | AA7: =Z7/Z3 -> 0.04905724768 | AB7: -1209 | AC7: =AB7/AB3 -> -0.1056264197
B10: Expenses | C10: =F10+H10+J10+L10+N10+P10+R10+T10+V10+X10+Z10+AB10 -> 261880 | F10: 22841 | H10: 26201 | J10: 22591 | L10: 24401 | N10: 25798 | P10: 21432 | R10: 18290 | T10: 21865 | V10: 19606 | X10: 20044 | Z10: 19488 | AB10: 19323
B11: Wages | C11: =F11+H11+J11+L11+N11+P11+R11+T11+V11+X11+Z11+AB11 -> 122192 | D11: =C11/C10 -> 0.4665953872 | F11: 9392 | G11: =F11/F10 -> 0.4111904032 | H11: 12129 | I11: =H11/H10 -> 0.4629212625 | J11: 9166 | K11: =J11/J10 -> 0.4057367978 | L11: 11075 | M11: =L11/L10 -> 0.4538748412 | N11: 10931 | O11: =N11/N10 -> 0.4237150167 | P11: 10047 | Q11: =P11/P10 -> 0.4687849944 | R11: 9830 | S11: =R11/R10 -> 0.5374521597 | T11: 9760 | U11: =T11/T10 -> 0.4463754859 | V11: 10116 | W11: =V11/V10 -> 0.5159645007 | X11: 9657 | Y11: =X11/X10 -> 0.4817900619 | Z11: 10113 | AA11: =Z11/Z10 -> 0.5189347291 | AB11: 9976 | AC11: =AB11/AB10 -> 0.5162759406
D12: =C11/C3 -> 0.4775326127 | G12: =F11/F3 -> 0.199834039 | I12: =H11/H3 -> 0.2244074821 | K12: =J11/J3 -> 0.2034583028 | M12: =L11/L3 -> 0.6339076183 | O12: =N11/N3 -> 0.8228696176 | Q12: =P11/P3 -> 1.611645813 | S12: =R11/R3 -> 1.286986122 | U12: =T11/T3 -> 0.9879542464 | W12: =V11/V3 -> 0.9840466926 | Y12: =X11/X3 -> 0.4423728814 | AA12: =Z11/Z3 -> 0.8628103404 | AC12: =AB11/AB3 -> 0.8715708544
C14: =C3-C10 -> -5998 | F14: =F3-F10 -> 24158 | H14: =H3-H10 -> 27848 | J14: =J3-J10 -> 22460 | L14: =L3-L10 -> -6930 | N14: =N3-N10 -> -12514 | P14: =P3-P10 -> -15198 | R14: =R3-R10 -> -10652 | T14: =T3-T10 -> -11986 | V14: =V3-V10 -> -9326 | X14: =X3-X10 -> 1786 | Z14: =Z3-Z10 -> -7767 | AB14: =AB3-AB10 -> -7877

Sheet 2018 (hidden)
B1: 2018
C2: YEAR END | F2: JANUARY | H2: FEBRUARY | J2: MARCH | L2: APRIL | N2: MAY | P2: JUNE | R2: JULY | T2: AUGUST | V2: SEPTEMBER | X2: OCTOBER | Z2: NOVEMBER | AB2: DECEMBER
B3: Gross Revenue | C3: =F3+H3+J3+L3+N3+P3+R3+T3+V3+X3+Z3+AB3 -> 81514 | R3: 23848 | T3: 9486 | V3: 16512 | X3: 17638 | Z3: 15780 | AB3: -1750
B4: Membership | C4: =F4+H4+J4+L4+N4+P4+R4+T4+V4+X4+Z4+AB4 -> 58391 | D4: =C4/C3 -> 0.716330937 | G4: =F4/F3 ->  | I4: =H4/H3 ->  | K4: =J4/J3 ->  | M4: =L4/L3 ->  | O4: =N4/N3 ->  | Q4: =P4/P3 ->  | R4: 2655 | S4: =R4/R3 -> 0.1113300906 | T4: 8390 | U4: =T4/T3 -> 0.8844613114 | V4: 9385 | W4: =V4/V3 -> 0.5683745155 | X4: 10816 | Y4: =X4/X3 -> 0.6132214537 | Z4: 21150 | AA4: =Z4/Z3 -> 1.340304183 | AB4: 5995 | AC4: =AB4/AB3 -> -3.425714286
B5: Events | C5: =F5+H5+J5+L5+N5+P5+R5+T5+V5+X5+Z5+AB5 -> 12353 | D5: =C5/C3 -> 0.15154452 | G5: =F5/F3 ->  | I5: =H5/H3 ->  | K5: =J5/J3 ->  | M5: =L5/L3 ->  | O5: =N5/N3 ->  | Q5: =P5/P3 ->  | R5: 13547 | S5: =R5/R3 -> 0.5680560215 | T5: 50 | U5: =T5/T3 -> 0.005270925575 | V5: 1135 | W5: =V5/V3 -> 0.0687378876 | X5: 3303 | Y5: =X5/X3 -> 0.1872661299 | Z5: 3366 | AA5: =Z5/Z3 -> 0.2133079848 | AB5: -9048 | AC5: =AB5/AB3 -> 5.170285714
B6: Non Dues | C6: =F6+H6+J6+L6+N6+P6+R6+T6+V6+X6+Z6+AB6 -> 780 | D6: =C6/C3 -> 0.009568908408 | G6: =F6/F3 ->  | I6: =H6/H3 ->  | K6: =J6/J3 ->  | M6: =L6/L3 ->  | O6: =N6/N3 ->  | Q6: =P6/P3 ->  | R6: 89 | S6: =R6/R3 -> 0.003731969138 | T6: 29 | U6: =T6/T3 -> 0.003057136833 | V6: 316 | W6: =V6/V3 -> 0.0191375969 | X6: 167 | Y6: =X6/X3 -> 0.009468193673 | Z6: 48 | AA6: =Z6/Z3 -> 0.003041825095 | AB6: 131 | AC6: =AB6/AB3 -> -0.07485714286
B7: Membership Activity | C7: =F7+H7+J7+L7+N7+P7+R7+T7+V7+X7+Z7+AB7 -> 129 | D7: =C7/C3 -> 0.001582550237 | G7: =F7/F3 ->  | I7: =H7/H3 ->  | K7: =J7/J3 ->  | M7: =L7/L3 ->  | O7: =N7/N3 ->  | Q7: =P7/P3 ->  | R7: 270 | S7: =R7/R3 -> 0.01132170413 | T7: -479 | U7: =T7/T3 -> -0.050495467 | V7: 680 | W7: =V7/V3 -> 0.04118217054 | X7: 522 | Y7: =X7/X3 -> 0.0295951922 | Z7: -495 | AA7: =Z7/Z3 -> -0.03136882129 | AB7: -369 | AC7: =AB7/AB3 -> 0.2108571429
B10: Expenses | C10: =F10+H10+J10+L10+N10+P10+R10+T10+V10+X10+Z10+AB10 -> 103148 | R10: 13324 | T10: 13054 | V10: 18208 | X10: 22744 | Z10: 20576 | AB10: 15242
B11: Wages | C11: =F11+H11+J11+L11+N11+P11+R11+T11+V11+X11+Z11+AB11 -> 53782 | D11: =C11/C10 -> 0.5214061349 | G11: =F11/F10 ->  | I11: =H11/H10 ->  | K11: =J11/J10 ->  | M11: =L11/L10 ->  | O11: =N11/N10 ->  | Q11: =P11/P10 ->  | R11: 7749 | S11: =R11/R10 -> 0.5815821075 | T11: 6666 | U11: =T11/T10 -> 0.5106480772 | V11: 9166 | W11: =V11/V10 -> 0.5034050967 | X11: 10003 | Y11: =X11/X10 -> 0.4398083011 | Z11: 10389 | AA11: =Z11/Z10 -> 0.5049086314 | AB11: 9809 | AC11: =AB11/AB10 -> 0.6435507151
C12: =C11/C3 -> 0.6597885026 | F12: =F11/F3 ->  | H12: =H11/H3 ->  | J12: =J11/J3 ->  | L12: =L11/L3 ->  | N12: =N11/N3 ->  | P12: =P11/P3 ->  | R12: =R11/R3 -> 0.3249329084 | T12: =T11/T3 -> 0.7027197976 | V12: =V11/V3 -> 0.5551114341 | X12: =X11/X3 -> 0.5671277923 | Z12: =Z11/Z3 -> 0.658365019 | AB12: =AB11/AB3 -> -5.605142857
C14: =C3-C10 -> -21634 | F14: =F3-F10 -> 0 | H14: =H3-H10 -> 0 | J14: =J3-J10 -> 0 | L14: =L3-L10 -> 0 | N14: =N3-N10 -> 0 | P14: =P3-P10 -> 0 | R14: =R3-R10 -> 10524 | T14: =T3-T10 -> -3568 | V14: =V3-V10 -> -1696 | X14: =X3-X10 -> -5106 | Z14: =Z3-Z10 -> -4796 | AB14: =AB3-AB10 -> -16992

Sheet 2017 (hidden)
B1: 2017
C2: YEAR END | F2: JANUARY | H2: FEBRUARY | J2: MARCH | L2: APRIL | N2: MAY | P2: JUNE | R2: JULY | T2: AUGUST | V2: SEPTEMBER | X2: OCTOBER | Z2: NOVEMBER | AB2: DECEMBER
B3: Gross Revenue | C3: =F3+H3+J3+L3+N3+P3+R3+T3+V3+X3+Z3+AB3 -> 0
B4: Membership | C4: =F4+H4+J4+L4+N4+P4+R4+T4+V4+X4+Z4+AB4 -> 0 | D4: =C4/C3 ->  | G4: =F4/F3 ->  | I4: =H4/H3 ->  | K4: =J4/J3 ->  | M4: =L4/L3 ->  | O4: =N4/N3 ->  | Q4: =P4/P3 ->  | S4: =R4/R3 ->  | U4: =T4/T3 ->  | W4: =V4/V3 ->  | Y4: =X4/X3 ->  | AA4: =Z4/Z3 ->  | AC4: =AB4/AB3 -> 
B5: Events | C5: =F5+H5+J5+L5+N5+P5+R5+T5+V5+X5+Z5+AB5 -> 0 | D5: =C5/C3 ->  | G5: =F5/F3 ->  | I5: =H5/H3 ->  | K5: =J5/J3 ->  | M5: =L5/L3 ->  | O5: =N5/N3 ->  | Q5: =P5/P3 ->  | S5: =R5/R3 ->  | U5: =T5/T3 ->  | W5: =V5/V3 ->  | Y5: =X5/X3 ->  | AA5: =Z5/Z3 ->  | AC5: =AB5/AB3 -> 
B6: Non Dues | C6: =F6+H6+J6+L6+N6+P6+R6+T6+V6+X6+Z6+AB6 -> 0 | D6: =C6/C3 ->  | G6: =F6/F3 ->  | I6: =H6/H3 ->  | K6: =J6/J3 ->  | M6: =L6/L3 ->  | O6: =N6/N3 ->  | Q6: =P6/P3 ->  | S6: =R6/R3 ->  | U6: =T6/T3 ->  | W6: =V6/V3 ->  | Y6: =X6/X3 ->  | AA6: =Z6/Z3 ->  | AC6: =AB6/AB3 -> 
B7: Membership Activity | C7: =F7+H7+J7+L7+N7+P7+R7+T7+V7+X7+Z7+AB7 -> 0 | D7: =C7/C3 ->  | G7: =F7/F3 ->  | I7: =H7/H3 ->  | K7: =J7/J3 ->  | M7: =L7/L3 ->  | O7: =N7/N3 ->  | Q7: =P7/P3 ->  | S7: =R7/R3 ->  | U7: =T7/T3 ->  | W7: =V7/V3 ->  | Y7: =X7/X3 ->  | AA7: =Z7/Z3 ->  | AC7: =AB7/AB3 -> 
B10: Expenses | C10: =F10+H10+J10+L10+N10+P10+R10+T10+V10+X10+Z10+AB10 -> 0
B11: Wages | C11: =F11+H11+J11+L11+N11+P11+R11+T11+V11+X11+Z11+AB11 -> 0 | D11: =C11/C10 ->  | G11: =F11/F10 ->  | I11: =H11/H10 ->  | K11: =J11/J10 ->  | M11: =L11/L10 ->  | O11: =N11/N10 ->  | Q11: =P11/P10 ->  | S11: =R11/R10 ->  | U11: =T11/T10 ->  | W11: =V11/V10 ->  | Y11: =X11/X10 ->  | AA11: =Z11/Z10 ->  | AC11: =AB11/AB10 -> 
C12: =C11/C3 ->  | F12: =F11/F3 ->  | H12: =H11/H3 ->  | J12: =J11/J3 ->  | L12: =L11/L3 ->  | N12: =N11/N3 ->  | P12: =P11/P3 ->  | R12: =R11/R3 ->  | T12: =T11/T3 ->  | V12: =V11/V3 ->  | X12: =X11/X3 ->  | Z12: =Z11/Z3 ->  | AB12: =AB11/AB3 -> 
C14: =C3-C10 -> 0 | F14: =F3-F10 -> 0 | H14: =H3-H10 -> 0 | J14: =J3-J10 -> 0 | L14: =L3-L10 -> 0 | N14: =N3-N10 -> 0 | P14: =P3-P10 -> 0 | R14: =R3-R10 -> 0 | T14: =T3-T10 -> 0 | V14: =V3-V10 -> 0 | X14: =X3-X10 -> 0 | Z14: =Z3-Z10 -> 0 | AB14: =AB3-AB10 -> 0
K30: 2047

Sheet 2016 (hidden)
B1: 2016
C2: YEAR END | F2: JANUARY | H2: FEBRUARY | J2: MARCH | L2: APRIL | N2: MAY | P2: JUNE | R2: JULY | T2: AUGUST | V2: SEPTEMBER | X2: OCTOBER | Z2: NOVEMBER | AB2: DECEMBER
B3: Gross Revenue | C3: =F3+H3+J3+L3+N3+P3+R3+T3+V3+X3+Z3+AB3 -> 112853 | F3: 74044 | T3: 6365 | V3: 12027 | X3: -1071 | Z3: 12137 | AB3: 9351
B4: Membership | C4: =F4+H4+J4+L4+N4+P4+R4+T4+V4+X4+Z4+AB4 -> 70016 | D4: =C4/C3 -> 0.6204177115 | F4: 15518 | G4: =F4/F3 -> 0.2095780887 | I4: =H4/H3 ->  | K4: =J4/J3 ->  | M4: =L4/L3 ->  | O4: =N4/N3 ->  | Q4: =P4/P3 ->  | S4: =R4/R3 ->  | T4: 13443 | U4: =T4/T3 -> 2.112018853 | V4: 12963 | W4: =V4/V3 -> 1.077824894 | X4: 8232 | Y4: =X4/X3 -> -7.68627451 | Z4: 12285 | AA4: =Z4/Z3 -> 1.012194117 | AB4: 7575 | AC4: =AB4/AB3 -> 0.8100737889
B5: Events | C5: =F5+H5+J5+L5+N5+P5+R5+T5+V5+X5+Z5+AB5 -> 12570 | D5: =C5/C3 -> 0.1113838356 | F5: 29674 | G5: =F5/F3 -> 0.4007617093 | I5: =H5/H3 ->  | K5: =J5/J3 ->  | M5: =L5/L3 ->  | O5: =N5/N3 ->  | Q5: =P5/P3 ->  | S5: =R5/R3 ->  | T5: -10075 | U5: =T5/T3 -> -1.582875098 | V5: 2575 | W5: =V5/V3 -> 0.2141016047 | X5: -9836 | Y5: =X5/X3 -> 9.183940243 | Z5: -268 | AA5: =Z5/Z3 -> -0.02208123919 | AB5: 500 | AC5: =AB5/AB3 -> 0.05347021709
B6: Non Dues | C6: =F6+H6+J6+L6+N6+P6+R6+T6+V6+X6+Z6+AB6 -> 10196 | D6: =C6/C3 -> 0.09034762036 | F6: 6316 | G6: =F6/F3 -> 0.08530063206 | I6: =H6/H3 ->  | K6: =J6/J3 ->  | M6: =L6/L3 ->  | O6: =N6/N3 ->  | Q6: =P6/P3 ->  | S6: =R6/R3 ->  | T6: 776 | U6: =T6/T3 -> 0.1219167321 | V6: 776 | W6: =V6/V3 -> 0.06452149331 | X6: 776 | Y6: =X6/X3 -> -0.7245564893 | Z6: 776 | AA6: =Z6/Z3 -> 0.06393672242 | AB6: 776 | AC6: =AB6/AB3 -> 0.08298577692
B7: Membership Activity | C7: =F7+H7+J7+L7+N7+P7+R7+T7+V7+X7+Z7+AB7 -> 14741 | D7: =C7/C3 -> 0.1306212507 | F7: 13235 | G7: =F7/F3 -> 0.1787450705 | I7: =H7/H3 ->  | K7: =J7/J3 ->  | M7: =L7/L3 ->  | O7: =N7/N3 ->  | Q7: =P7/P3 ->  | S7: =R7/R3 ->  | T7: 1050 | U7: =T7/T3 -> 0.1649646504 | V7: 1255 | W7: =V7/V3 -> 0.1043485491 | X7: -644 | Y7: =X7/X3 -> 0.6013071895 | Z7: -655 | AA7: =Z7/Z3 -> -0.05396720771 | AB7: 500 | AC7: =AB7/AB3 -> 0.05347021709
B10: Expenses | C10: =F10+H10+J10+L10+N10+P10+R10+T10+V10+X10+Z10+AB10 -> 105467 | F10: 26052 | T10: 15916 | V10: 24930 | X10: 12605 | Z10: 12222 | AB10: 13742
B11: Wages | C11: =F11+H11+J11+L11+N11+P11+R11+T11+V11+X11+Z11+AB11 -> 39485 | D11: =C11/C10 -> 0.3743825083 | F11: 9670 | G11: =F11/F10 -> 0.3711807155 | I11: =H11/H10 ->  | K11: =J11/J10 ->  | M11: =L11/L10 ->  | O11: =N11/N10 ->  | Q11: =P11/P10 ->  | S11: =R11/R10 ->  | T11: 8153 | U11: =T11/T10 -> 0.5122518221 | V11: 13615 | W11: =V11/V10 -> 0.5461291617 | X11: 3366 | Y11: =X11/X10 -> 0.2670368901 | Z11: 3406 | AA11: =Z11/Z10 -> 0.2786777941 | AB11: 1275 | AC11: =AB11/AB10 -> 0.09278125455
D12: =C11/C3 -> 0.3498799323 | G12: =F11/F3 -> 0.1305980228 | I12: =H11/H3 ->  | K12: =J11/J3 ->  | M12: =L11/L3 ->  | O12: =N11/N3 ->  | Q12: =P11/P3 ->  | S12: =R11/R3 ->  | U12: =T11/T3 -> 1.280911233 | W12: =V11/V3 -> 1.132036252 | Y12: =X11/X3 -> -3.142857143 | AA12: =Z11/Z3 -> 0.2806294801 | AC12: =AB11/AB3 -> 0.1363490536
C14: =C3-C10 -> 7386 | F14: =F3-F10 -> 47992 | H14: =H3-H10 -> 0 | J14: =J3-J10 -> 0 | L14: =L3-L10 -> 0 | N14: =N3-N10 -> 0 | P14: =P3-P10 -> 0 | R14: =R3-R10 -> 0 | T14: =T3-T10 -> -9551 | V14: =V3-V10 -> -12903 | X14: =X3-X10 -> -13676 | Z14: =Z3-Z10 -> -85 | AB14: =AB3-AB10 -> -4391

Sheet 2015 (hidden)
B1: 2015
C2: YEAR END | F2: JANUARY | H2: FEBRUARY | J2: MARCH | L2: APRIL | N2: MAY | P2: JUNE | R2: JULY | T2: AUGUST | V2: SEPTEMBER | X2: OCTOBER | Z2: NOVEMBER | AB2: DECEMBER
B3: Gross Revenue | C3: =F3+H3+J3+L3+N3+P3+R3+T3+V3+X3+Z3+AB3 -> 80412 | F3: 44478 | H3: =H4+H5+H6+H7 -> 17152 | J3: 18782
B4: Membership | C4: =F4+H4+J4+L4+N4+P4+R4+T4+V4+X4+Z4+AB4 -> 34334 | D4: =C4/C3 -> 0.4269760732 | F4: 13505 | G4: =F4/F3 -> 0.3036332569 | H4: 9297 | I4: =H4/H3 -> 0.5420359142 | J4: 11532 | K4: =J4/J3 -> 0.6139921201 | M4: =L4/L3 ->  | O4: =N4/N3 ->  | Q4: =P4/P3 ->  | S4: =R4/R3 ->  | U4: =T4/T3 ->  | W4: =V4/V3 ->  | Y4: =X4/X3 ->  | AA4: =Z4/Z3 ->  | AC4: =AB4/AB3 -> 
B5: Events | C5: =F5+H5+J5+L5+N5+P5+R5+T5+V5+X5+Z5+AB5 -> 730 | D5: =C5/C3 -> 0.009078247028 | F5: 230 | G5: =F5/F3 -> 0.005171095823 | H5: 0 | I5: =H5/H3 -> 0 | J5: 500 | K5: =J5/J3 -> 0.0266212331 | M5: =L5/L3 ->  | O5: =N5/N3 ->  | Q5: =P5/P3 ->  | S5: =R5/R3 ->  | U5: =T5/T3 ->  | W5: =V5/V3 ->  | Y5: =X5/X3 ->  | AA5: =Z5/Z3 ->  | AC5: =AB5/AB3 -> 
B6: Non Dues | C6: =F6+H6+J6+L6+N6+P6+R6+T6+V6+X6+Z6+AB6 -> 31138 | D6: =C6/C3 -> 0.3872307616 | F6: 29043 | G6: =F6/F3 -> 0.6529745042 | H6: 900 | I6: =H6/H3 -> 0.05247201493 | J6: 1195 | K6: =J6/J3 -> 0.0636247471 | M6: =L6/L3 ->  | O6: =N6/N3 ->  | Q6: =P6/P3 ->  | S6: =R6/R3 ->  | U6: =T6/T3 ->  | W6: =V6/V3 ->  | Y6: =X6/X3 ->  | AA6: =Z6/Z3 ->  | AC6: =AB6/AB3 -> 
B7: Membership Activity | C7: =F7+H7+J7+L7+N7+P7+R7+T7+V7+X7+Z7+AB7 -> 18260 | D7: =C7/C3 -> 0.2270805352 | F7: 5750 | G7: =F7/F3 -> 0.1292773956 | H7: 6955 | I7: =H7/H3 -> 0.4054920709 | J7: 5555 | K7: =J7/J3 -> 0.2957618997 | M7: =L7/L3 ->  | O7: =N7/N3 ->  | Q7: =P7/P3 ->  | S7: =R7/R3 ->  | U7: =T7/T3 ->  | W7: =V7/V3 ->  | Y7: =X7/X3 ->  | AA7: =Z7/Z3 ->  | AC7: =AB7/AB3 -> 
B10: Expenses | C10: =F10+H10+J10+L10+N10+P10+R10+T10+V10+X10+Z10+AB10 -> 93006 | F10: 26472 | H10: 24651 | J10: 41883
B11: Wages | C11: =F11+H11+J11+L11+N11+P11+R11+T11+V11+X11+Z11+AB11 -> 37275 | D11: =C11/C10 -> 0.4007805948 | F11: 12425 | G11: =F11/F10 -> 0.4693638561 | H11: 12425 | I11: =H11/H10 -> 0.5040363474 | J11: 12425 | K11: =J11/J10 -> 0.2966597426 | M11: =L11/L10 ->  | O11: =N11/N10 ->  | Q11: =P11/P10 ->  | S11: =R11/R10 ->  | U11: =T11/T10 ->  | W11: =V11/V10 ->  | Y11: =X11/X10 ->  | AA11: =Z11/Z10 ->  | AC11: =AB11/AB10 -> 
D12: =C11/C3 -> 0.4635502164 | G12: =F11/F3 -> 0.2793515895 | I12: =H11/H3 -> 0.7244053172 | K12: =J11/J3 -> 0.6615376424 | M12: =L11/L3 ->  | O12: =N11/N3 ->  | Q12: =P11/P3 ->  | S12: =R11/R3 ->  | U12: =T11/T3 ->  | W12: =V11/V3 ->  | Y12: =X11/X3 ->  | AA12: =Z11/Z3 ->  | AC12: =AB11/AB3 -> 
C14: =C3-C10 -> -12594 | F14: =F3-F10 -> 18006 | H14: =H3-H10 -> -7499 | J14: =J3-J10 -> -23101 | L14: =L3-L10 -> 0 | N14: =N3-N10 -> 0 | P14: =P3-P10 -> 0 | R14: =R3-R10 -> 0 | T14: =T3-T10 -> 0 | V14: =V3-V10 -> 0 | X14: =X3-X10 -> 0 | Z14: =Z3-Z10 -> 0 | AB14: =AB3-AB10 -> 0

Sheet 2014 (hidden)
B1: 2014
C2: YEAR END | F2: JANUARY | H2: FEBRUARY | J2: MARCH | L2: APRIL | N2: MAY | P2: JUNE | R2: JULY | T2: AUGUST | V2: SEPTEMBER | X2: OCTOBER | Z2: NOVEMBER | AB2: DECEMBER
B3: Gross Revenue | C3: =F3+H3+J3+L3+N3+P3+R3+T3+V3+X3+Z3+AB3 -> 88313 | F3: 88313
B4: Membership | C4: =F4+H4+J4+L4+N4+P4+R4+T4+V4+X4+Z4+AB4 -> 88246 | D4: =C4/C3 -> 0.9992413348 | F4: 79454 | G4: =F4/F3 -> 0.8996863429 | I4: =H4/H3 ->  | K4: =J4/J3 ->  | M4: =L4/L3 ->  | O4: =N4/N3 ->  | Q4: =P4/P3 ->  | S4: =R4/R3 ->  | U4: =T4/T3 ->  | W4: =V4/V3 ->  | X4: 8792 | Y4: =X4/X3 ->  | AA4: =Z4/Z3 ->  | AC4: =AB4/AB3 -> 
B5: Events | C5: =F5+H5+J5+L5+N5+P5+R5+T5+V5+X5+Z5+AB5 -> 4765 | D5: =C5/C3 -> 0.05395581624 | F5: 3205 | G5: =F5/F3 -> 0.03629137273 | I5: =H5/H3 ->  | K5: =J5/J3 ->  | M5: =L5/L3 ->  | O5: =N5/N3 ->  | Q5: =P5/P3 ->  | S5: =R5/R3 ->  | U5: =T5/T3 ->  | W5: =V5/V3 ->  | X5: 1560 | Y5: =X5/X3 ->  | AA5: =Z5/Z3 ->  | AC5: =AB5/AB3 -> 
B6: Non Dues | C6: =F6+H6+J6+L6+N6+P6+R6+T6+V6+X6+Z6+AB6 -> 1433 | D6: =C6/C3 -> 0.01622637664 | F6: 879 | G6: =F6/F3 -> 0.009953234518 | I6: =H6/H3 ->  | K6: =J6/J3 ->  | M6: =L6/L3 ->  | O6: =N6/N3 ->  | Q6: =P6/P3 ->  | S6: =R6/R3 ->  | U6: =T6/T3 ->  | W6: =V6/V3 ->  | X6: 554 | Y6: =X6/X3 ->  | AA6: =Z6/Z3 ->  | AC6: =AB6/AB3 -> 
B7: Membership Activity | C7: =F7+H7+J7+L7+N7+P7+R7+T7+V7+X7+Z7+AB7 -> 12900 | D7: =C7/C3 -> 0.1460713598 | F7: 4775 | G7: =F7/F3 -> 0.05406904986 | I7: =H7/H3 ->  | K7: =J7/J3 ->  | M7: =L7/L3 ->  | O7: =N7/N3 ->  | Q7: =P7/P3 ->  | S7: =R7/R3 ->  | U7: =T7/T3 ->  | W7: =V7/V3 ->  | X7: 8125 | Y7: =X7/X3 ->  | AA7: =Z7/Z3 ->  | AC7: =AB7/AB3 -> 
B10: Expenses | C10: =F10+H10+J10+L10+N10+P10+R10+T10+V10+X10+Z10+AB10 -> 43352 | F10: 22433 | X10: 20919
B11: Wages | C11: =F11+H11+J11+L11+N11+P11+R11+T11+V11+X11+Z11+AB11 -> 24012 | D11: =C11/C10 -> 0.5538844805 | F11: 12006 | G11: =F11/F10 -> 0.5351936879 | I11: =H11/H10 ->  | K11: =J11/J10 ->  | M11: =L11/L10 ->  | O11: =N11/N10 ->  | Q11: =P11/P10 ->  | S11: =R11/R10 ->  | U11: =T11/T10 ->  | W11: =V11/V10 ->  | X11: 12006 | Y11: =X11/X10 -> 0.573928008 | AA11: =Z11/Z10 ->  | AC11: =AB11/AB10 -> 
C12: =C11/C3 -> 0.2718965498 | F12: =F11/F3 -> 0.1359482749 | H12: =H11/H3 ->  | J12: =J11/J3 ->  | L12: =L11/L3 ->  | N12: =N11/N3 ->  | P12: =P11/P3 ->  | R12: =R11/R3 ->  | T12: =T11/T3 ->  | V12: =V11/V3 ->  | X12: =X11/X3 ->  | Z12: =Z11/Z3 ->  | AB12: =AB11/AB3 -> 
C14: =C3-C10 -> 44961 | F14: =F3-F10 -> 65880 | H14: =H3-H10 -> 0 | J14: =J3-J10 -> 0 | L14: =L3-L10 -> 0 | N14: =N3-N10 -> 0 | P14: =P3-P10 -> 0 | R14: =R3-R10 -> 0 | T14: =T3-T10 -> 0 | V14: =V3-V10 -> 0 | X14: =X3-X10 -> -20919 | Z14: =Z3-Z10 -> 0 | AB14: =AB3-AB10 -> 0

Sheet 2013 (hidden)
B1: 2013
C2: YEAR END | F2: JANUARY | H2: FEBRUARY | J2: MARCH | L2: APRIL | N2: MAY | P2: JUNE | R2: JULY | T2: AUGUST | V2: SEPTEMBER | X2: OCTOBER | Z2: NOVEMBER | AB2: DECEMBER
B3: Gross Revenue | C3: =F3+H3+J3+L3+N3+P3+R3+T3+V3+X3+Z3+AB3 -> 81514 | R3: 23848 | T3: 9486 | V3: 16512 | X3: 17638 | Z3: 15780 | AB3: -1750
B4: Membership | C4: =F4+H4+J4+L4+N4+P4+R4+T4+V4+X4+Z4+AB4 -> 58391 | D4: =C4/C3 -> 0.716330937 | G4: =F4/F3 ->  | I4: =H4/H3 ->  | K4: =J4/J3 ->  | M4: =L4/L3 ->  | O4: =N4/N3 ->  | Q4: =P4/P3 ->  | R4: 2655 | S4: =R4/R3 -> 0.1113300906 | T4: 8390 | U4: =T4/T3 -> 0.8844613114 | V4: 9385 | W4: =V4/V3 -> 0.5683745155 | X4: 10816 | Y4: =X4/X3 -> 0.6132214537 | Z4: 21150 | AA4: =Z4/Z3 -> 1.340304183 | AB4: 5995 | AC4: =AB4/AB3 -> -3.425714286
B5: Events | C5: =F5+H5+J5+L5+N5+P5+R5+T5+V5+X5+Z5+AB5 -> 12353 | D5: =C5/C3 -> 0.15154452 | G5: =F5/F3 ->  | I5: =H5/H3 ->  | K5: =J5/J3 ->  | M5: =L5/L3 ->  | O5: =N5/N3 ->  | Q5: =P5/P3 ->  | R5: 13547 | S5: =R5/R3 -> 0.5680560215 | T5: 50 | U5: =T5/T3 -> 0.005270925575 | V5: 1135 | W5: =V5/V3 -> 0.0687378876 | X5: 3303 | Y5: =X5/X3 -> 0.1872661299 | Z5: 3366 | AA5: =Z5/Z3 -> 0.2133079848 | AB5: -9048 | AC5: =AB5/AB3 -> 5.170285714
B6: Non Dues | C6: =F6+H6+J6+L6+N6+P6+R6+T6+V6+X6+Z6+AB6 -> 780 | D6: =C6/C3 -> 0.009568908408 | G6: =F6/F3 ->  | I6: =H6/H3 ->  | K6: =J6/J3 ->  | M6: =L6/L3 ->  | O6: =N6/N3 ->  | Q6: =P6/P3 ->  | R6: 89 | S6: =R6/R3 -> 0.003731969138 | T6: 29 | U6: =T6/T3 -> 0.003057136833 | V6: 316 | W6: =V6/V3 -> 0.0191375969 | X6: 167 | Y6: =X6/X3 -> 0.009468193673 | Z6: 48 | AA6: =Z6/Z3 -> 0.003041825095 | AB6: 131 | AC6: =AB6/AB3 -> -0.07485714286
B7: Membership Activity | C7: =F7+H7+J7+L7+N7+P7+R7+T7+V7+X7+Z7+AB7 -> 129 | D7: =C7/C3 -> 0.001582550237 | G7: =F7/F3 ->  | I7: =H7/H3 ->  | K7: =J7/J3 ->  | M7: =L7/L3 ->  | O7: =N7/N3 ->  | Q7: =P7/P3 ->  | R7: 270 | S7: =R7/R3 -> 0.01132170413 | T7: -479 | U7: =T7/T3 -> -0.050495467 | V7: 680 | W7: =V7/V3 -> 0.04118217054 | X7: 522 | Y7: =X7/X3 -> 0.0295951922 | Z7: -495 | AA7: =Z7/Z3 -> -0.03136882129 | AB7: -369 | AC7: =AB7/AB3 -> 0.2108571429
B10: Expenses | C10: =F10+H10+J10+L10+N10+P10+R10+T10+V10+X10+Z10+AB10 -> 103148 | R10: 13324 | T10: 13054 | V10: 18208 | X10: 22744 | Z10: 20576 | AB10: 15242
B11: Wages | C11: =F11+H11+J11+L11+N11+P11+R11+T11+V11+X11+Z11+AB11 -> 53782 | D11: =C11/C10 -> 0.5214061349 | G11: =F11/F10 ->  | I11: =H11/H10 ->  | K11: =J11/J10 ->  | M11: =L11/L10 ->  | O11: =N11/N10 ->  | Q11: =P11/P10 ->  | R11: 7749 | S11: =R11/R10 -> 0.5815821075 | T11: 6666 | U11: =T11/T10 -> 0.5106480772 | V11: 9166 | W11: =V11/V10 -> 0.5034050967 | X11: 10003 | Y11: =X11/X10 -> 0.4398083011 | Z11: 10389 | AA11: =Z11/Z10 -> 0.5049086314 | AB11: 9809 | AC11: =AB11/AB10 -> 0.6435507151
C12: =C11/C3 -> 0.6597885026 | F12: =F11/F3 ->  | H12: =H11/H3 ->  | J12: =J11/J3 ->  | L12: =L11/L3 ->  | N12: =N11/N3 ->  | P12: =P11/P3 ->  | R12: =R11/R3 -> 0.3249329084 | T12: =T11/T3 -> 0.7027197976 | V12: =V11/V3 -> 0.5551114341 | X12: =X11/X3 -> 0.5671277923 | Z12: =Z11/Z3 -> 0.658365019 | AB12: =AB11/AB3 -> -5.605142857
C14: =C3-C10 -> -21634 | F14: =F3-F10 -> 0 | H14: =H3-H10 -> 0 | J14: =J3-J10 -> 0 | L14: =L3-L10 -> 0 | N14: =N3-N10 -> 0 | P14: =P3-P10 -> 0 | R14: =R3-R10 -> 10524 | T14: =T3-T10 -> -3568 | V14: =V3-V10 -> -1696 | X14: =X3-X10 -> -5106 | Z14: =Z3-Z10 -> -4796 | AB14: =AB3-AB10 -> -16992

Sheet 2012 (hidden)
B1: 2012
C2: YEAR END | F2: JANUARY | H2: FEBRUARY | J2: MARCH | L2: APRIL | N2: MAY | P2: JUNE | R2: JULY | T2: AUGUST | V2: SEPTEMBER | X2: OCTOBER | Z2: NOVEMBER | AB2: DECEMBER
B3: Gross Revenue | C3: =F3+H3+J3+L3+N3+P3+R3+T3+V3+X3+Z3+AB3 -> 81514 | R3: 23848 | T3: 9486 | V3: 16512 | X3: 17638 | Z3: 15780 | AB3: -1750
B4: Membership | C4: =F4+H4+J4+L4+N4+P4+R4+T4+V4+X4+Z4+AB4 -> 58391 | D4: =C4/C3 -> 0.716330937 | G4: =F4/F3 ->  | I4: =H4/H3 ->  | K4: =J4/J3 ->  | M4: =L4/L3 ->  | O4: =N4/N3 ->  | Q4: =P4/P3 ->  | R4: 2655 | S4: =R4/R3 -> 0.1113300906 | T4: 8390 | U4: =T4/T3 -> 0.8844613114 | V4: 9385 | W4: =V4/V3 -> 0.5683745155 | X4: 10816 | Y4: =X4/X3 -> 0.6132214537 | Z4: 21150 | AA4: =Z4/Z3 -> 1.340304183 | AB4: 5995 | AC4: =AB4/AB3 -> -3.425714286
B5: Events | C5: =F5+H5+J5+L5+N5+P5+R5+T5+V5+X5+Z5+AB5 -> 12353 | D5: =C5/C3 -> 0.15154452 | G5: =F5/F3 ->  | I5: =H5/H3 ->  | K5: =J5/J3 ->  | M5: =L5/L3 ->  | O5: =N5/N3 ->  | Q5: =P5/P3 ->  | R5: 13547 | S5: =R5/R3 -> 0.5680560215 | T5: 50 | U5: =T5/T3 -> 0.005270925575 | V5: 1135 | W5: =V5/V3 -> 0.0687378876 | X5: 3303 | Y5: =X5/X3 -> 0.1872661299 | Z5: 3366 | AA5: =Z5/Z3 -> 0.2133079848 | AB5: -9048 | AC5: =AB5/AB3 -> 5.170285714
B6: Non Dues | C6: =F6+H6+J6+L6+N6+P6+R6+T6+V6+X6+Z6+AB6 -> 780 | D6: =C6/C3 -> 0.009568908408 | G6: =F6/F3 ->  | I6: =H6/H3 ->  | K6: =J6/J3 ->  | M6: =L6/L3 ->  | O6: =N6/N3 ->  | Q6: =P6/P3 ->  | R6: 89 | S6: =R6/R3 -> 0.003731969138 | T6: 29 | U6: =T6/T3 -> 0.003057136833 | V6: 316 | W6: =V6/V3 -> 0.0191375969 | X6: 167 | Y6: =X6/X3 -> 0.009468193673 | Z6: 48 | AA6: =Z6/Z3 -> 0.003041825095 | AB6: 131 | AC6: =AB6/AB3 -> -0.07485714286
B7: Membership Activity | C7: =F7+H7+J7+L7+N7+P7+R7+T7+V7+X7+Z7+AB7 -> 129 | D7: =C7/C3 -> 0.001582550237 | G7: =F7/F3 ->  | I7: =H7/H3 ->  | K7: =J7/J3 ->  | M7: =L7/L3 ->  | O7: =N7/N3 ->  | Q7: =P7/P3 ->  | R7: 270 | S7: =R7/R3 -> 0.01132170413 | T7: -479 | U7: =T7/T3 -> -0.050495467 | V7: 680 | W7: =V7/V3 -> 0.04118217054 | X7: 522 | Y7: =X7/X3 -> 0.0295951922 | Z7: -495 | AA7: =Z7/Z3 -> -0.03136882129 | AB7: -369 | AC7: =AB7/AB3 -> 0.2108571429
B10: Expenses | C10: =F10+H10+J10+L10+N10+P10+R10+T10+V10+X10+Z10+AB10 -> 103148 | R10: 13324 | T10: 13054 | V10: 18208 | X10: 22744 | Z10: 20576 | AB10: 15242
B11: Wages | C11: =F11+H11+J11+L11+N11+P11+R11+T11+V11+X11+Z11+AB11 -> 53782 | D11: =C11/C10 -> 0.5214061349 | G11: =F11/F10 ->  | I11: =H11/H10 ->  | K11: =J11/J10 ->  | M11: =L11/L10 ->  | O11: =N11/N10 ->  | Q11: =P11/P10 ->  | R11: 7749 | S11: =R11/R10 -> 0.5815821075 | T11: 6666 | U11: =T11/T10 -> 0.5106480772 | V11: 9166 | W11: =V11/V10 -> 0.5034050967 | X11: 10003 | Y11: =X11/X10 -> 0.4398083011 | Z11: 10389 | AA11: =Z11/Z10 -> 0.5049086314 | AB11: 9809 | AC11: =AB11/AB10 -> 0.6435507151
C12: =C11/C3 -> 0.6597885026 | F12: =F11/F3 ->  | H12: =H11/H3 ->  | J12: =J11/J3 ->  | L12: =L11/L3 ->  | N12: =N11/N3 ->  | P12: =P11/P3 ->  | R12: =R11/R3 -> 0.3249329084 | T12: =T11/T3 -> 0.7027197976 | V12: =V11/V3 -> 0.5551114341 | X12: =X11/X3 -> 0.5671277923 | Z12: =Z11/Z3 -> 0.658365019 | AB12: =AB11/AB3 -> -5.605142857
C14: =C3-C10 -> -21634 | F14: =F3-F10 -> 0 | H14: =H3-H10 -> 0 | J14: =J3-J10 -> 0 | L14: =L3-L10 -> 0 | N14: =N3-N10 -> 0 | P14: =P3-P10 -> 0 | R14: =R3-R10 -> 10524 | T14: =T3-T10 -> -3568 | V14: =V3-V10 -> -1696 | X14: =X3-X10 -> -5106 | Z14: =Z3-Z10 -> -4796 | AB14: =AB3-AB10 -> -16992

Sheet 2011 (hidden)
B1: 2011
C2: YEAR END | F2: JANUARY | H2: FEBRUARY | J2: MARCH | L2: APRIL | N2: MAY | P2: JUNE | R2: JULY | T2: AUGUST | V2: SEPTEMBER | X2: OCTOBER | Z2: NOVEMBER | AB2: DECEMBER
B3: Gross Revenue | C3: =F3+H3+J3+L3+N3+P3+R3+T3+V3+X3+Z3+AB3 -> 81514 | R3: 23848 | T3: 9486 | V3: 16512 | X3: 17638 | Z3: 15780 | AB3: -1750
B4: Membership | C4: =F4+H4+J4+L4+N4+P4+R4+T4+V4+X4+Z4+AB4 -> 58391 | D4: =C4/C3 -> 0.716330937 | G4: =F4/F3 ->  | I4: =H4/H3 ->  | K4: =J4/J3 ->  | M4: =L4/L3 ->  | O4: =N4/N3 ->  | Q4: =P4/P3 ->  | R4: 2655 | S4: =R4/R3 -> 0.1113300906 | T4: 8390 | U4: =T4/T3 -> 0.8844613114 | V4: 9385 | W4: =V4/V3 -> 0.5683745155 | X4: 10816 | Y4: =X4/X3 -> 0.6132214537 | Z4: 21150 | AA4: =Z4/Z3 -> 1.340304183 | AB4: 5995 | AC4: =AB4/AB3 -> -3.425714286
B5: Events | C5: =F5+H5+J5+L5+N5+P5+R5+T5+V5+X5+Z5+AB5 -> 12353 | D5: =C5/C3 -> 0.15154452 | G5: =F5/F3 ->  | I5: =H5/H3 ->  | K5: =J5/J3 ->  | M5: =L5/L3 ->  | O5: =N5/N3 ->  | Q5: =P5/P3 ->  | R5: 13547 | S5: =R5/R3 -> 0.5680560215 | T5: 50 | U5: =T5/T3 -> 0.005270925575 | V5: 1135 | W5: =V5/V3 -> 0.0687378876 | X5: 3303 | Y5: =X5/X3 -> 0.1872661299 | Z5: 3366 | AA5: =Z5/Z3 -> 0.2133079848 | AB5: -9048 | AC5: =AB5/AB3 -> 5.170285714
B6: Non Dues | C6: =F6+H6+J6+L6+N6+P6+R6+T6+V6+X6+Z6+AB6 -> 780 | D6: =C6/C3 -> 0.009568908408 | G6: =F6/F3 ->  | I6: =H6/H3 ->  | K6: =J6/J3 ->  | M6: =L6/L3 ->  | O6: =N6/N3 ->  | Q6: =P6/P3 ->  | R6: 89 | S6: =R6/R3 -> 0.003731969138 | T6: 29 | U6: =T6/T3 -> 0.003057136833 | V6: 316 | W6: =V6/V3 -> 0.0191375969 | X6: 167 | Y6: =X6/X3 -> 0.009468193673 | Z6: 48 | AA6: =Z6/Z3 -> 0.003041825095 | AB6: 131 | AC6: =AB6/AB3 -> -0.07485714286
B7: Membership Activity | C7: =F7+H7+J7+L7+N7+P7+R7+T7+V7+X7+Z7+AB7 -> 129 | D7: =C7/C3 -> 0.001582550237 | G7: =F7/F3 ->  | I7: =H7/H3 ->  | K7: =J7/J3 ->  | M7: =L7/L3 ->  | O7: =N7/N3 ->  | Q7: =P7/P3 ->  | R7: 270 | S7: =R7/R3 -> 0.01132170413 | T7: -479 | U7: =T7/T3 -> -0.050495467 | V7: 680 | W7: =V7/V3 -> 0.04118217054 | X7: 522 | Y7: =X7/X3 -> 0.0295951922 | Z7: -495 | AA7: =Z7/Z3 -> -0.03136882129 | AB7: -369 | AC7: =AB7/AB3 -> 0.2108571429
B10: Expenses | C10: =F10+H10+J10+L10+N10+P10+R10+T10+V10+X10+Z10+AB10 -> 103148 | R10: 13324 | T10: 13054 | V10: 18208 | X10: 22744 | Z10: 20576 | AB10: 15242
B11: Wages | C11: =F11+H11+J11+L11+N11+P11+R11+T11+V11+X11+Z11+AB11 -> 53782 | D11: =C11/C10 -> 0.5214061349 | G11: =F11/F10 ->  | I11: =H11/H10 ->  | K11: =J11/J10 ->  | M11: =L11/L10 ->  | O11: =N11/N10 ->  | Q11: =P11/P10 ->  | R11: 7749 | S11: =R11/R10 -> 0.5815821075 | T11: 6666 | U11: =T11/T10 -> 0.5106480772 | V11: 9166 | W11: =V11/V10 -> 0.5034050967 | X11: 10003 | Y11: =X11/X10 -> 0.4398083011 | Z11: 10389 | AA11: =Z11/Z10 -> 0.5049086314 | AB11: 9809 | AC11: =AB11/AB10 -> 0.6435507151
C12: =C11/C3 -> 0.6597885026 | F12: =F11/F3 ->  | H12: =H11/H3 ->  | J12: =J11/J3 ->  | L12: =L11/L3 ->  | N12: =N11/N3 ->  | P12: =P11/P3 ->  | R12: =R11/R3 -> 0.3249329084 | T12: =T11/T3 -> 0.7027197976 | V12: =V11/V3 -> 0.5551114341 | X12: =X11/X3 -> 0.5671277923 | Z12: =Z11/Z3 -> 0.658365019 | AB12: =AB11/AB3 -> -5.605142857
C14: =C3-C10 -> -21634 | F14: =F3-F10 -> 0 | H14: =H3-H10 -> 0 | J14: =J3-J10 -> 0 | L14: =L3-L10 -> 0 | N14: =N3-N10 -> 0 | P14: =P3-P10 -> 0 | R14: =R3-R10 -> 10524 | T14: =T3-T10 -> -3568 | V14: =V3-V10 -> -1696 | X14: =X3-X10 -> -5106 | Z14: =Z3-Z10 -> -4796 | AB14: =AB3-AB10 -> -16992
